fUSD/lending_fUSD_20250211
["ID","MTS","AMOUNT","RATE_DAILY","PERIOD"]
[352698718,1739250648465,-1357.0,0.000111,2]
[352698720,1739250648474,-200.0,0.00011119,2]
[352698722,1739250648484,-200.0,0.00011119,2]
[352698724,1739250648494,-500.0,0.00011119,2]
[352698726,1739250648504,-909.41,0.00011119,2]
[352698728,1739250648515,-500.0,0.00011119,2]
[352698730,1739250648525,-508.11,0.00011119,2]
[352698732,1739250648536,-469.40402166,0.00011124,2]
[352698734,1739250648546,-200.0,0.00011137,2]
[352698737,1739250648557,-154.5,0.00011161,2]
[352698738,1739250648567,-4031.84957834,0.00011163,2]
[352698740,1739250648577,-168.96,0.00011194,2]
[352698742,1739250648587,-150.0,0.00011194,2]
[352698743,1739250648597,-1000.0,0.00011202,2]
[352698744,1739250648607,-2662.233,0.00011209,2]
[352698745,1739250648617,-169.561,0.00011209,2]
[352698746,1739250648626,-1369.5477493,0.00011219,2]
[352698747,1739250648636,-2733.7378138,0.0001122,2]
[352698748,1739250648647,-500.0,0.00011224,2]
[352698749,1739250648656,-500.0,0.00011224,2]
[352698750,1739250648666,-819.03,0.00011224,2]
[352698751,1739250648675,-500.0,0.00011224,2]
[352698752,1739250648684,-500.0,0.00011224,2]
[352698753,1739250648694,-421.22798426,0.00011224,2]
[352698754,1739250648705,-500.0,0.00011224,2]
[352698756,1739250648715,-593.17,0.00011224,2]
[352698758,1739250648726,-500.0,0.00011224,2]
[352698760,1739250648736,-500.0,0.00011224,2]
[352698762,1739250648746,-1281.55,0.00011224,2]
[352698764,1739250648758,-690.52,0.00011224,2]
[352698766,1739250648768,-1082.82,0.00011224,2]
[352698768,1739250648778,-500.0,0.00011224,2]
[352698770,1739250648788,-512.87,0.00011224,2]
[352698772,1739250648798,-500.0,0.00011224,2]
[352698774,1739250648810,-500.0,0.00011224,2]
[352698776,1739250648821,-500.0,0.00011224,2]
[352698778,1739250648831,-500.0,0.00011224,2]
[352698780,1739250648842,-500.0,0.00011224,2]
[352698782,1739250648851,-500.0,0.00011224,2]
[352698784,1739250648862,-855.55,0.00011224,2]
[352698786,1739250648872,-506.30306623,0.00011224,2]
[352698788,1739250648883,-500.0,0.00011224,2]
[352698790,1739250648893,-500.0,0.00011224,2]
[352698792,1739250648903,-1085.81,0.00011224,2]
[352698794,1739250648913,-1001.71,0.00011224,2]
[352698796,1739250648923,-500.0,0.00011224,2]
[352698798,1739250648933,-500.0,0.00011224,2]
[352698800,1739250648943,-1044.12,0.00011224,2]
[352698802,1739250648953,-500.0,0.00011224,2]
[352698804,1739250648964,-473.8828497,0.00011224,2]
[352698806,1739250648974,-500.0,0.00011224,2]
[352698808,1739250648984,-500.0,0.00011224,2]
[352698810,1739250648995,-500.0,0.00011224,2]
[352698812,1739250649005,-516.57,0.00011224,2]
[352698814,1739250649015,-1153.71,0.00011224,2]
[352698816,1739250649025,-500.0,0.00011224,2]
[352698818,1739250649036,-500.0,0.00011224,2]
[352698820,1739250649047,-500.0,0.00011224,2]
[352698822,1739250649059,-1127.37,0.00011224,2]
[352698824,1739250649069,-500.0,0.00011224,2]
[352698826,1739250649079,-500.0,0.00011224,2]
[352698828,1739250649089,-996.99,0.00011224,2]
[352698830,1739250649099,-746.45,0.00011224,2]
[352698832,1739250649109,-732.69,0.00011224,2]
[352698833,1739250649119,-1355.62,0.00011224,2]
[352698835,1739250649129,-500.0,0.00011224,2]
[352698838,1739250649140,-1268.76,0.00011224,2]
[352698840,1739250649151,-500.0,0.00011224,2]
[352698841,1739250649160,-821.39,0.00011224,2]
[352698844,1739250649171,-152.423402,0.00011224,2]
[352698846,1739250649182,-500.0,0.00011224,2]
[352698848,1739250649192,-1108.36,0.00011224,2]
[352698850,1739250649203,-1046.45,0.00011224,2]
[352698852,1739250649213,-500.0,0.00011224,2]
[352698853,1739250649223,-500.0,0.00011224,2]
[352698871,1739250649233,-555.11,0.00011224,2]
[352698874,1739250649421,-2031.53,0.00011224,2]
[352698876,1739250649431,-500.0,0.00011224,2]
[352698878,1739250649442,-964.59,0.00011224,2]
[352698880,1739250649452,-500.0,0.00011224,2]
[352698883,1739250649462,-1017.86,0.00011224,2]
[352698884,1739250649472,-500.0,0.00011224,2]
[352698886,1739250649481,-823.15,0.00011224,2]
[352698888,1739250649491,-500.0,0.00011224,2]
[352698891,1739250649501,-243.57105237,0.00011224,2]
[352698892,1739250649511,-1151.89,0.00011224,2]
[352698894,1739250649520,-500.0,0.00011224,2]
[352698897,1739250649530,-2205.5,0.00011224,2]
[352698898,1739250649540,-609.11,0.00011224,2]
[352698901,1739250649550,-654.4,0.00011224,2]
[352698902,1739250649562,-2005.37,0.00011224,2]
[352698904,1739250649571,-2304.23,0.00011224,2]
[352698907,1739250649582,-500.0,0.00011224,2]
[352698908,1739250649591,-598.6,0.00011224,2]
[352698910,1739250649601,-1463.02,0.00011224,2]
[352698912,1739250649610,-500.0,0.00011224,2]
[352698915,1739250649621,-2363.59,0.00011224,2]
[352698917,1739250649631,-297.88004588,0.00011224,2]
[352698919,1739250649644,-3895.3,0.00011224,2]
[352698921,1739250649655,-500.0,0.00011224,2]
[352698923,1739250649664,-1321.37,0.00011224,2]
[352698925,1739250649674,-500.0,0.00011224,2]
[352698927,1739250649684,-500.0,0.00011224,2]
[352698929,1739250649694,-420.81590225,0.00011224,2]
[352698931,1739250649703,-1706.81,0.00011224,2]
[352698933,1739250649713,-500.0,0.00011224,2]
[352698935,1739250649725,-500.0,0.00011224,2]
[352698937,1739250649735,-500.0,0.00011224,2]
[352698938,1739250649745,-500.0,0.00011224,2]
[352698940,1739250649755,-589.67,0.00011224,2]
[352698942,1739250649765,-3539.03,0.00011224,2]
[352698945,1739250649775,-852.21,0.00011224,2]
[352698946,1739250649785,-2494.75,0.00011224,2]
[352698948,1739250649795,-3064.21,0.00011224,2]
[352698949,1739250649804,-2557.35,0.00011224,2]
[352698950,1739250649817,-1123.55,0.00011224,2]
[352698951,1739250649828,-598.96,0.00011224,2]
[352698952,1739250649837,-500.0,0.00011224,2]
[352698953,1739250649848,-500.0,0.00011224,2]
[352698954,1739250649857,-500.0,0.00011224,2]
[352698955,1739250649867,-500.0,0.00011225,2]
[352698956,1739250649877,-500.0,0.00011225,2]
[352698957,1739250649887,-500.0,0.00011225,2]
[352698958,1739250649897,-500.0,0.00011225,2]
[352698959,1739250649907,-500.0,0.00011225,2]
[352698960,1739250649917,-500.0,0.00011225,2]
[352698961,1739250649927,-500.0,0.00011225,2]
[352698962,1739250649946,-500.0,0.00011225,2]
[352698963,1739250649956,-418.1950076,0.00011225,2]
[352698964,1739250649966,-500.0,0.00011225,2]
[352698965,1739250649975,-319.33794616,0.00011225,2]
[352698966,1739250649985,-395.92585495,0.00011225,2]
[352698967,1739250649995,-500.0,0.00011225,2]
[352698968,1739250650004,-500.0,0.00011225,2]
[352698969,1739250650014,-265.03007349,0.00011225,2]
[352698970,1739250650023,-500.0,0.00011225,2]
[352698971,1739250650033,-585.9,0.00011225,2]
[352698972,1739250650042,-500.0,0.00011225,2]
[352698973,1739250650051,-500.0,0.00011225,2]
[352698974,1739250650060,-500.0,0.00011225,2]
[352698975,1739250650070,-500.0,0.00011225,2]
[352698976,1739250650078,-500.0,0.00011225,2]
[352698977,1739250650088,-500.0,0.00011225,2]
[352698978,1739250650097,-507.8782895,0.00011225,2]
[352698979,1739250650107,-500.0,0.00011225,2]
[352698980,1739250650116,-500.0,0.00011225,2]
[352698981,1739250650125,-510.08082336,0.00011225,2]
[352698982,1739250650134,-500.0,0.00011225,2]
[352698983,1739250650144,-500.0,0.00011225,2]
[352698984,1739250650153,-500.0,0.00011225,2]
[352698985,1739250650163,-500.0,0.00011225,2]
[352698986,1739250650172,-500.0,0.00011225,2]
[352698987,1739250650181,-500.0,0.00011225,2]
[352698988,1739250650190,-1091.53,0.00011225,2]
[352698989,1739250650200,-920.75,0.00011225,2]
[352698990,1739250650209,-749.18,0.00011225,2]
[352698991,1739250650218,-742.75,0.00011225,2]
[352698992,1739250650227,-1372.19,0.00011225,2]
[352698993,1739250650237,-1086.38,0.00011225,2]
[352698994,1739250650246,-850.38,0.00011225,2]
[352698995,1739250650255,-605.22053846,0.00011225,2]
[352698996,1739250650265,-668.29,0.00011225,2]
[352698997,1739250650274,-500.0,0.00011225,2]
[352698998,1739250650283,-500.0,0.00011225,2]
[352698999,1739250650292,-500.0,0.00011225,2]
[352699000,1739250650301,-500.0,0.00011225,2]
[352699001,1739250650313,-500.0,0.00011225,2]
[352699002,1739250650322,-500.0,0.00011225,2]
[352699003,1739250650331,-500.0,0.00011225,2]
[352699004,1739250650340,-922.56,0.00011225,2]
[352699005,1739250650350,-500.0,0.00011225,2]
[352699006,1739250650359,-500.0,0.00011225,2]
[352699007,1739250650368,-500.0,0.00011225,2]
[352699008,1739250650378,-791.04,0.00011225,2]
[352699009,1739250650387,-500.0,0.00011225,2]
[352699010,1739250650397,-513.34,0.00011225,2]
[352699011,1739250650406,-739.51,0.00011225,2]
[352699012,1739250650416,-215.84818717,0.00011225,2]
[352699013,1739250650425,-909.41,0.00011225,2]
[352699014,1739250650436,-909.41,0.00011225,2]
[352699015,1739250650446,-909.41,0.00011225,2]
[352699016,1739250650455,-909.41,0.00011225,2]
[352699017,1739250650465,-819.25,0.00011225,2]
[352699018,1739250650476,-500.0,0.00011225,2]
[352699019,1739250650486,-500.0,0.00011225,2]
[352699020,1739250650496,-500.0,0.00011225,2]
[352699021,1739250650505,-500.0,0.00011225,2]
[352699022,1739250650515,-500.0,0.00011225,2]
[352699023,1739250650524,-500.0,0.00011225,2]
[352699024,1739250650534,-647.0,0.00011225,2]
[352699025,1739250650543,-500.0,0.00011225,2]
[352699026,1739250650553,-500.0,0.00011225,2]
[352699027,1739250650564,-503.22,0.00011225,2]
[352699028,1739250650573,-548.71,0.00011225,2]
[352699029,1739250650583,-500.0,0.00011225,2]
[352699030,1739250650592,-500.0,0.00011225,2]
[352699031,1739250650601,-500.0,0.00011225,2]
[352699032,1739250650610,-850.19,0.00011225,2]
[352699033,1739250650620,-2211.69,0.00011225,2]
[352699034,1739250650629,-500.0,0.00011225,2]
[352699035,1739250650638,-3380.37,0.00011225,2]
[352699036,1739250650651,-500.0,0.00011225,2]
[352699037,1739250650660,-3326.51,0.00011225,2]
[352699038,1739250650669,-1364.94,0.00011225,2]
[352699039,1739250650679,-500.0,0.00011225,2]
[352699040,1739250650688,-500.0,0.00011225,2]
[352699041,1739250650698,-1496.14,0.00011225,2]
[352699042,1739250650708,-1648.31,0.00011225,2]
[352699043,1739250650717,-500.0,0.00011225,2]
[352699044,1739250650729,-500.0,0.00011225,2]
[352699045,1739250650738,-1727.1,0.00011225,2]
[352699046,1739250650747,-1482.45,0.00011225,2]
[352699047,1739250650756,-877.76,0.00011225,2]
[352699048,1739250650766,-754.61,0.00011225,2]
[352699049,1739250650775,-2012.41,0.00011225,2]
[352699050,1739250650784,-653.12,0.00011225,2]
[352699051,1739250650793,-1000.0,0.00011225,2]
[352699052,1739250650803,-500.0,0.00011225,2]
[352699053,1739250650812,-1224.26,0.00011225,2]
[352699054,1739250650821,-3364.19,0.00011225,2]
[352699055,1739250650831,-500.0,0.00011225,2]
[352699056,1739250650840,-919.56,0.00011225,2]
[352699057,1739250650850,-1342.61,0.00011225,2]
[352699058,1739250650859,-1696.91,0.00011225,2]
[352699059,1739250650867,-1058.19,0.00011225,2]
[352699060,1739250650877,-529.0,0.00011225,2]
[352699061,1739250650886,-1726.12,0.00011225,2]
[352699062,1739250650896,-2047.09,0.00011225,2]
[352699063,1739250650905,-500.0,0.00011225,2]
[352699064,1739250650914,-846.67,0.00011225,2]
[352699065,1739250650923,-500.0,0.00011225,2]
[352699066,1739250650933,-2250.97,0.00011225,2]
[352699067,1739250650943,-500.0,0.00011225,2]
[352699068,1739250650952,-1924.38,0.00011225,2]
[352699069,1739250650962,-500.0,0.00011225,2]
[352699070,1739250650971,-2178.46,0.00011225,2]
[352699071,1739250650980,-500.0,0.00011225,2]
[352699072,1739250650989,-1343.29,0.00011225,2]
[352699073,1739250650998,-2325.4,0.00011225,2]
[352699074,1739250651008,-500.0,0.00011225,2]
[352699075,1739250651017,-4154.14,0.00011225,2]
[352699076,1739250651026,-6719.92,0.00011225,2]
[352699077,1739250651035,-1045.71,0.00011225,2]
[352699078,1739250651046,-500.0,0.00011225,2]
[352699079,1739250651055,-1866.62,0.00011225,2]
[352699080,1739250651064,-500.0,0.00011225,2]
[352699081,1739250651074,-1745.72,0.00011225,2]
[352699082,1739250651084,-914.24,0.00011225,2]
[352699083,1739250651094,-827.83,0.00011225,2]
[352699084,1739250651104,-500.0,0.00011225,2]
[352699085,1739250651114,-577.54,0.00011225,2]
[352699086,1739250651124,-500.0,0.00011226,2]
[352699087,1739250651136,-960.38,0.00011226,2]
[352699088,1739250651145,-976.95,0.00011226,2]
[352699089,1739250651155,-441.64,0.00011226,2]
[352699090,1739250651164,-1093.76,0.00011226,2]
[352699091,1739250651174,-761.93,0.00011226,2]
[352699092,1739250651183,-500.0,0.00011226,2]
[352699093,1739250651193,-1252.08,0.00011226,2]
[352699094,1739250651202,-502.05,0.00011226,2]
[352699095,1739250651212,-1297.81,0.00011226,2]
[352699096,1739250651221,-1338.1,0.00011226,2]
[352699097,1739250651231,-500.0,0.00011226,2]
[352699098,1739250651241,-500.0,0.00011226,2]
[352699099,1739250651251,-909.41,0.00011226,2]
[352699100,1739250651260,-500.0,0.00011226,2]
[352699101,1739250651270,-500.0,0.00011226,2]
[352699102,1739250651280,-500.0,0.00011226,2]
[352699103,1739250651290,-500.0,0.00011226,2]
[352699104,1739250651299,-302562.78775389,0.00011229,2]
[352699105,1739250651308,-200.0,0.0001123,2]
[352699106,1739250651319,-2305.92,0.00011232,2]
[352699107,1739250651328,-912.093638,0.00011232,2]
[352699108,1739250651338,-1518.4,0.00011232,2]
[352699109,1739250651347,-1321.43,0.00011232,2]
[352699110,1739250651357,-1026.73,0.00011232,2]
[352699111,1739250651367,-1838.06,0.00011232,2]
[352699112,1739250651376,-520.4,0.00011232,2]
[352699113,1739250651386,-994.35,0.00011232,2]
[352699114,1739250651396,-855.97882,0.00011232,2]
[352699115,1739250651406,-1940.58,0.00011232,2]
[352699116,1739250651416,-1535.32,0.00011232,2]
[352699117,1739250651426,-1212.29,0.00011232,2]
[352699118,1739250651435,-664.32,0.00011232,2]
[352699119,1739250651445,-500.0,0.00011232,2]
[352699120,1739250651455,-1142.24,0.00011232,2]
[352699121,1739250651465,-613.57,0.00011232,2]
[352699122,1739250651474,-1415.44,0.00011232,2]
[352699123,1739250651484,-2337.57,0.00011232,2]
[352699124,1739250651494,-2581.03,0.00011232,2]
[352699125,1739250651503,-2314.39,0.00011232,2]
[352699126,1739250651513,-784.45,0.00011232,2]
[352699127,1739250651522,-2326.26,0.00011232,2]
[352699128,1739250651532,-1666.57,0.00011232,2]
[352699129,1739250651542,-2137.62,0.00011232,2]
[352699130,1739250651551,-817.64,0.00011232,2]
[352699131,1739250651561,-2910.21,0.00011232,2]
[352699132,1739250651571,-1673.73,0.00011232,2]
[352699133,1739250651581,-2252.75,0.00011232,2]
[352699134,1739250651590,-2037.2,0.00011232,2]
[352699135,1739250651600,-1423.58,0.00011232,2]
[352699136,1739250651609,-3288.35,0.00011232,2]
[352699137,1739250651619,-6743.59,0.00011232,2]
[352699138,1739250651628,-1685.93,0.00011232,2]
[352699139,1739250651638,-2259.46,0.00011232,2]
[352699140,1739250651649,-2672.27,0.00011232,2]
[352699141,1739250651658,-2966.77,0.00011232,2]
[352699142,1739250651667,-1318.65,0.00011232,2]
[352699143,1739250651677,-2716.9,0.00011232,2]
[352699144,1739250651687,-1540.01,0.00011232,2]
[352699145,1739250651696,-4869.53,0.00011232,2]
[352699146,1739250651705,-3646.89,0.00011232,2]
[352699147,1739250651715,-978.58,0.00011232,2]
[352699148,1739250651724,-1074.13,0.00011232,2]
[352699149,1739250651733,-2364.94,0.00011232,2]
[352699150,1739250651744,-1399.13,0.00011232,2]
[352699151,1739250651798,-724.27,0.00011232,2]
[352699152,1739250651808,-535.72,0.00011232,2]
[352699153,1739250651819,-544.88,0.00011232,2]
[352699154,1739250651828,-2035.19,0.00011232,2]
[352699155,1739250651838,-2908.54,0.00011232,2]
[352699156,1739250651847,-500.0,0.00011232,2]
[352699157,1739250651856,-1488.4,0.00011232,2]
[352699158,1739250651865,-2749.95,0.00011232,2]
[352699159,1739250651874,-500.0,0.00011232,2]
[352699160,1739250651883,-953.06,0.00011232,2]
[352699161,1739250651892,-173.53989406,0.00011263,2]
[352699162,1739250651902,-879.7639182,0.00011272,2]
[352699163,1739250651911,-466.27844338,0.0001128,2]
[352699164,1739250651921,-151.0,0.00011283,2]
[352699165,1739250651930,-150.0,0.00011283,2]
[352699166,1739250651940,-150.203,0.00011283,2]
[352699167,1739250651949,-279.717,0.00011283,2]
[352699168,1739250651959,-150.0,0.00011283,2]
[352699169,1739250651967,-205.868,0.00011283,2]
[352699170,1739250651976,-201.94,0.00011283,2]
[352699171,1739250651985,-252.967,0.00011283,2]
[352699172,1739250651994,-154.843,0.00011283,2]
[352699173,1739250652003,-1169.0,0.000113,2]
[352699174,1739250652012,-30060.9017931,0.000113,2]
[352699175,1739250652022,-150.0,0.00011314,2]
[352699176,1739250652031,-200.0,0.00011342,2]
[352699177,1739250652040,-19958.0,0.00011342,2]
[352699178,1739250652048,-500.0,0.00011361,2]
[352699179,1739250652057,-819.03,0.00011361,2]
[352699180,1739250652067,-500.0,0.00011361,2]
[352699181,1739250652076,-500.0,0.00011361,2]
[352699182,1739250652085,-500.0,0.00011361,2]
[352699183,1739250652095,-593.17,0.00011361,2]
[352699184,1739250652104,-500.0,0.00011361,2]
[352699185,1739250652113,-500.0,0.00011361,2]
[352699186,1739250652122,-1281.55,0.00011361,2]
[352699187,1739250652131,-690.52,0.00011361,2]
[352699188,1739250652140,-1082.82,0.00011361,2]
[352699189,1739250652150,-500.0,0.00011361,2]
[352699190,1739250652159,-512.87,0.00011361,2]
[352699191,1739250652168,-500.0,0.00011361,2]
[352699192,1739250652178,-500.0,0.00011361,2]
[352699193,1739250652187,-500.0,0.00011361,2]
[352699194,1739250652196,-514.42875825,0.00011361,2]
[352699195,1739250652205,-500.0,0.00011361,2]
[352699196,1739250652214,-855.55,0.00011361,2]
[352699197,1739250652223,-500.0,0.00011361,2]
[352699198,1739250652232,-1085.81,0.00011361,2]
[352699199,1739250652241,-1001.71,0.00011361,2]
[352699200,1739250652250,-500.0,0.00011361,2]
[352699201,1739250652259,-500.0,0.00011361,2]
[352699202,1739250652269,-1044.12,0.00011361,2]
[352699203,1739250652278,-500.0,0.00011361,2]
[352699204,1739250652287,-500.0,0.00011361,2]
[352699205,1739250652296,-500.0,0.00011361,2]
[352699206,1739250652306,-500.0,0.00011361,2]
[352699207,1739250652315,-516.57,0.00011361,2]
[352699208,1739250652324,-1153.71,0.00011361,2]
[352699209,1739250652333,-500.0,0.00011361,2]
[352699210,1739250652343,-500.0,0.00011361,2]
[352699211,1739250652352,-422.95122342,0.00011361,2]
[352699212,1739250652362,-1127.37,0.00011361,2]
[352699213,1739250652372,-500.0,0.00011361,2]
[352699214,1739250652381,-500.0,0.00011361,2]
[352699215,1739250652390,-996.99,0.00011361,2]
[352699216,1739250652400,-746.45,0.00011361,2]
[352699217,1739250652410,-732.69,0.00011361,2]
[352699218,1739250652419,-1355.62,0.00011361,2]
[352699219,1739250652428,-500.0,0.00011361,2]
[352699220,1739250652438,-1268.76,0.00011361,2]
[352699221,1739250652447,-500.0,0.00011361,2]
[352699222,1739250652456,-821.39,0.00011361,2]
[352699223,1739250652466,-500.0,0.00011361,2]
[352699224,1739250652475,-1108.36,0.00011361,2]
[352699225,1739250652485,-1046.45,0.00011361,2]
[352699226,1739250652494,-500.0,0.00011361,2]
[352699227,1739250652504,-500.0,0.00011361,2]
[352699228,1739250652514,-555.11,0.00011361,2]
[352699229,1739250652523,-2031.53,0.00011361,2]
[352699230,1739250652533,-964.59,0.00011361,2]
[352699231,1739250652542,-498.34381991,0.00011361,2]
[352699232,1739250652553,-1017.86,0.00011361,2]
[352699233,1739250652565,-500.0,0.00011361,2]
[352699234,1739250652574,-823.15,0.00011361,2]
[352699235,1739250652584,-500.0,0.00011361,2]
[352699236,1739250652594,-1151.89,0.00011361,2]
[352699237,1739250652603,-500.0,0.00011361,2]
[352699238,1739250652613,-2205.5,0.00011361,2]
[352699239,1739250652622,-609.11,0.00011361,2]
[352699240,1739250652631,-654.4,0.00011361,2]
[352699241,1739250652641,-2005.37,0.00011361,2]
[352699242,1739250652655,-2304.23,0.00011361,2]
[352699243,1739250652664,-500.0,0.00011361,2]
[352699244,1739250652673,-598.6,0.00011361,2]
[352699245,1739250652682,-1463.02,0.00011361,2]
[352699246,1739250652693,-500.0,0.00011361,2]
[352699247,1739250652702,-2363.59,0.00011361,2]
[352699248,1739250652717,-3895.3,0.00011361,2]
[352699249,1739250652735,-1321.37,0.00011361,2]
[352699250,1739250652744,-500.0,0.00011361,2]
[352699251,1739250652754,-1706.81,0.00011361,2]
[352699252,1739250652763,-500.0,0.00011361,2]
[352699253,1739250652772,-500.0,0.00011361,2]
[352699254,1739250652782,-500.0,0.00011361,2]
[352699255,1739250652791,-500.0,0.00011361,2]
[352699256,1739250652800,-589.67,0.00011361,2]
[352699257,1739250652810,-3539.03,0.00011361,2]
[352699258,1739250652822,-852.21,0.00011361,2]
[352699259,1739250652831,-2494.75,0.00011361,2]
[352699260,1739250652840,-3064.21,0.00011361,2]
[352699261,1739250652849,-2557.35,0.00011361,2]
[352699262,1739250652859,-1123.55,0.00011361,2]
[352699263,1739250652869,-598.96,0.00011361,2]
[352699264,1739250652878,-500.0,0.00011361,2]
[352699265,1739250652887,-500.0,0.00011361,2]
[352699266,1739250652896,-500.0,0.00011361,2]
[352699267,1739250652906,-500.0,0.00011362,2]
[352699268,1739250652915,-500.0,0.00011362,2]
[352699269,1739250652924,-500.0,0.00011362,2]
[352699270,1739250652933,-500.0,0.00011362,2]
[352699271,1739250652943,-500.0,0.00011362,2]
[352699272,1739250652953,-500.0,0.00011362,2]
[352699273,1739250652963,-151.0,0.00011362,2]
[352699274,1739250652972,-500.0,0.00011362,2]
[352699275,1739250652981,-500.0,0.00011362,2]
[352699276,1739250652990,-500.0,0.00011362,2]
[352699277,1739250652999,-420.58558278,0.00011362,2]
[352699278,1739250653008,-585.9,0.00011362,2]
[352699279,1739250653018,-500.0,0.00011362,2]
[352699280,1739250653027,-500.0,0.00011362,2]
[352699281,1739250653037,-500.0,0.00011362,2]
[352699282,1739250653047,-500.0,0.00011362,2]
[352699283,1739250653057,-500.0,0.00011362,2]
[352699284,1739250653068,-500.0,0.00011362,2]
[352699285,1739250653078,-500.0,0.00011362,2]
[352699286,1739250653087,-1091.53,0.00011362,2]
[352699287,1739250653097,-920.75,0.00011362,2]
[352699288,1739250653108,-749.18,0.00011362,2]
[352699289,1739250653118,-742.75,0.00011362,2]
[352699290,1739250653127,-1372.19,0.00011362,2]
[352699291,1739250653137,-1086.38,0.00011362,2]
[352699292,1739250653146,-850.38,0.00011362,2]
[352699293,1739250653155,-668.29,0.00011362,2]
[352699294,1739250653165,-577.89728775,0.00011362,2]
[352699295,1739250653175,-500.0,0.00011362,2]
[352699296,1739250653185,-500.0,0.00011362,2]
[352699297,1739250653194,-500.0,0.00011362,2]
[352699298,1739250653204,-500.0,0.00011362,2]
[352699299,1739250653214,-500.0,0.00011362,2]
[352699300,1739250653224,-500.0,0.00011362,2]
[352699301,1739250653234,-922.56,0.00011362,2]
[352699302,1739250653244,-500.0,0.00011362,2]
[352699303,1739250653254,-500.0,0.00011362,2]
[352699304,1739250653263,-500.0,0.00011362,2]
[352699305,1739250653273,-791.04,0.00011362,2]
[352699306,1739250653283,-500.0,0.00011362,2]
[352699307,1739250653292,-513.34,0.00011362,2]
[352699308,1739250653302,-739.51,0.00011362,2]
[352699309,1739250653311,-909.41,0.00011362,2]
[352699310,1739250653322,-819.25,0.00011362,2]
[352699311,1739250653332,-500.0,0.00011362,2]
[352699312,1739250653342,-500.0,0.00011362,2]
[352699313,1739250653352,-500.0,0.00011362,2]
[352699314,1739250653362,-500.0,0.00011362,2]
[352699315,1739250653372,-500.0,0.00011362,2]
[352699316,1739250653382,-500.0,0.00011362,2]
[352699317,1739250653391,-647.0,0.00011362,2]
[352699318,1739250653401,-500.0,0.00011362,2]
[352699319,1739250653410,-500.0,0.00011362,2]
[352699320,1739250653419,-503.22,0.00011362,2]
[352699321,1739250653428,-548.71,0.00011362,2]
[352699322,1739250653436,-500.0,0.00011362,2]
[352699323,1739250653446,-500.0,0.00011362,2]
[352699324,1739250653455,-500.0,0.00011362,2]
[352699325,1739250653464,-850.19,0.00011362,2]
[352699326,1739250653474,-2211.69,0.00011362,2]
[352699327,1739250653483,-500.0,0.00011362,2]
[352699328,1739250653492,-3380.37,0.00011362,2]
[352699329,1739250653502,-500.0,0.00011362,2]
[352699330,1739250653511,-3326.51,0.00011362,2]
[352699331,1739250653521,-1364.94,0.00011362,2]
[352699332,1739250653530,-500.0,0.00011362,2]
[352699333,1739250653539,-500.0,0.00011362,2]
[352699334,1739250653548,-1496.14,0.00011362,2]